fUST/lending_fUST_20250717
["ID","MTS","AMOUNT","RATE_DAILY","PERIOD"]
[372585339,1752694247260,-470.7,0.00023561,2]
[372585341,1752694247269,-1636.37,0.00023561,2]
[372585343,1752694247278,-510.59,0.00023561,2]
[372585345,1752694247287,-642.0,0.000236,2]
[372585347,1752694247297,-152.635506,0.00023625,14]
[372585349,1752694247307,-816.87,0.00023635,2]
[372585351,1752694247317,-1680.19,0.00023635,2]
[372585353,1752694247326,-460.0,0.00023635,2]
[372585356,1752694247336,-189.626064,0.00023635,2]
[372585358,1752694247346,-2803.52,0.00023635,2]
[372585360,1752694247357,-642.09,0.00023635,2]
[372585362,1752694247366,-1748.36,0.00023635,2]
[372585364,1752694247376,-972.68,0.00023635,2]
[372585366,1752694247385,-1438.37,0.00023635,2]
[372585368,1752694247394,-983.03,0.00023635,2]
[372585370,1752694247403,-475.44,0.00023635,2]
[372585372,1752694247412,-217.7,0.00023643,6]
[372585374,1752694247422,-2653.65750983,0.00023728,9]
[372585376,1752694247434,-1765.45,0.00023735,2]
[372585378,1752694247447,-784.45,0.00023735,2]
[372585380,1752694247457,-538.06,0.00023735,2]
[372585382,1752694247466,-1168.88,0.00023735,2]
[372585384,1752694247475,-150.0,0.00023788,2]
[372585386,1752694247484,-150.0,0.00023788,2]
[372585387,1752694247493,-150.0,0.00023788,2]
[372585389,1752694247502,-175.982,0.00023788,2]
[372585391,1752694247511,-160.0,0.0002379,5]
[372585394,1752694247521,-860.0,0.00023791,2]
[372585396,1752694247530,-186.44970157,0.00023823,2]
[372585397,1752694247539,-460.0,0.00023835,2]
[372585400,1752694247548,-611.6,0.00023835,2]
[372585401,1752694247557,-470.7,0.00023835,2]
[372585403,1752694247567,-1636.37,0.00023835,2]
[372585405,1752694247577,-510.59,0.00023835,2]
[372585407,1752694247586,-151.0,0.00023864,7]
[372585409,1752694247595,-152.635506,0.00023899,10]
[372585412,1752694247604,-294.93716538,0.000239,2]
[372585414,1752694247614,-816.87,0.00023909,2]
[372585416,1752694247623,-1680.19,0.00023909,2]
[372585418,1752694247633,-460.0,0.00023909,2]
[372585420,1752694247642,-2803.52,0.00023909,2]
[372585422,1752694247651,-642.09,0.00023909,2]
[372585424,1752694247661,-1748.36,0.00023909,2]
[372585426,1752694247670,-972.68,0.00023909,2]
[372585428,1752694247679,-1438.37,0.00023909,2]
[372585430,1752694247693,-983.03,0.00023909,2]
[372585432,1752694247702,-475.44,0.00023909,2]
[372585434,1752694247712,-2653.65750983,0.00023969,10]
[372585436,1752694247722,-909.246555,0.00024,7]
[372585438,1752694247737,-10000.00000746,0.00024,2]
[372585440,1752694247746,-26691.31,0.00024,7]
[372585442,1752694247755,-2894.46,0.00024,7]
[372585444,1752694247767,-525.58295679,0.00024,7]
[372585446,1752694247779,-215.5496034,0.00024,7]
[372585448,1752694247789,-1765.45,0.00024009,2]
[372585450,1752694247798,-784.45,0.00024009,2]
[372585452,1752694247807,-538.06,0.00024009,2]
[372585453,1752694247818,-1168.88,0.00024009,2]
[372585456,1752694247829,-217.7,0.00024017,6]
[372585457,1752694247838,-152.635506,0.00024044,2]
[372585459,1752694247848,-2155.0,0.00024058,2]
[372585462,1752694247857,-968.0,0.00024058,2]
[372585464,1752694247867,-407.0,0.00024058,2]
[372585466,1752694247876,-413.405,0.00024058,2]
[372585467,1752694247885,-460.0,0.00024109,2]
[372585469,1752694247894,-611.6,0.00024109,2]
[372585471,1752694247904,-470.7,0.00024109,2]
[372585473,1752694247913,-1636.37,0.00024109,2]
[372585475,1752694247923,-510.59,0.00024109,2]
[372585477,1752694247934,-168.0,0.00024164,7]
[372585479,1752694247943,-816.87,0.00024183,2]
[372585481,1752694247953,-1680.19,0.00024183,2]
[372585483,1752694247962,-427.87,0.00024183,2]
[372585485,1752694247972,-2803.52,0.00024183,2]
[372585487,1752694247981,-642.09,0.00024183,2]
[372585489,1752694247991,-1748.36,0.00024183,2]
[372585491,1752694248000,-972.68,0.00024183,2]
[372585493,1752694248010,-1438.37,0.00024183,2]
[372585495,1752694248019,-983.03,0.00024183,2]
[372585497,1752694248029,-475.44,0.00024183,2]
[372585499,1752694248040,-15000.0,0.000242,3]
[372585501,1752694248050,-2653.65750983,0.0002421,10]
[372585503,1752694248060,-177.46811819,0.00024219,2]
[372585505,1752694248070,-500.0,0.00024244,2]
[372585507,1752694248080,-152.635506,0.00024245,7]
[372585509,1752694248090,-152.635506,0.00024247,6]
[372585511,1752694248101,-223.0315306,0.00024251,2]
[372585513,1752694248111,-500.0,0.0002426,2]
[372585516,1752694248121,-1765.45,0.00024283,2]
[372585518,1752694248131,-784.45,0.00024283,2]
[372585520,1752694248140,-538.06,0.00024283,2]
[372585521,1752694248149,-1168.88,0.00024283,2]
[372585523,1752694248158,-5262.95,0.000243,7]
[372585525,1752694248167,-12500.0,0.00024308,7]
[372585527,1752694248176,-200.0,0.0002431,10]
[372585529,1752694248187,-960.0,0.00024339,2]
[372585531,1752694248196,-168.0,0.00024354,2]
[372585533,1752694248206,-168.0,0.00024369,2]
[372585535,1752694248216,-168.0,0.00024374,2]
[372585538,1752694248226,-460.0,0.00024383,2]
[372585540,1752694248236,-611.6,0.00024383,2]
[372585541,1752694248246,-470.7,0.00024383,2]
[372585544,1752694248256,-1636.37,0.00024383,2]
[372585546,1752694248266,-510.59,0.00024383,2]
[372585548,1752694248276,-217.7,0.00024391,6]
[372585550,1752694248285,-168.0,0.00024395,2]
[372585552,1752694248295,-151.0,0.000244,6]
[372585554,1752694248306,-2653.65750983,0.00024452,11]
[372585556,1752694248316,-816.87,0.00024457,2]
[372585558,1752694248326,-1680.19,0.00024457,2]
[372585560,1752694248337,-2803.52,0.00024457,2]
[372585562,1752694248347,-642.09,0.00024457,2]
[372585564,1752694248357,-1748.36,0.00024457,2]
[372585566,1752694248368,-972.68,0.00024457,2]
[372585568,1752694248378,-1438.37,0.00024457,2]
[372585570,1752694248388,-983.03,0.00024457,2]
[372585572,1752694248398,-475.44,0.00024457,2]
[372585574,1752694248408,-2566.0,0.000245,2]
[372585576,1752694248419,-2566.0,0.000245,2]
[372585578,1752694248429,-2566.0,0.000245,2]
[372585580,1752694248441,-2566.0,0.000245,2]
[372585582,1752694248451,-2566.0,0.000245,2]
[372585584,1752694248461,-2566.0,0.000245,2]
[372585586,1752694248471,-2566.0,0.000245,2]
[372585588,1752694248481,-2566.0,0.000245,2]
[372585590,1752694248491,-2566.0,0.000245,2]
[372585592,1752694248500,-2566.0,0.000245,2]
[372585594,1752694248510,-34764.33,0.000245,2]
[372585596,1752694248519,-150000.0,0.000245,2]
[372585598,1752694248529,-150000.0,0.000245,2]
[372585600,1752694248539,-150000.0,0.000245,2]
[372585602,1752694248549,-177.46811819,0.00024521,2]
[372585604,1752694248558,-168.0,0.00024522,2]
[372585606,1752694248568,-1765.45,0.00024557,2]
[372585608,1752694248577,-784.45,0.00024557,2]
[372585610,1752694248587,-538.06,0.00024557,2]
[372585611,1752694248597,-1168.88,0.00024557,2]
[372585612,1752694248610,-168.0,0.00024567,2]
[372585613,1752694248620,-823.0,0.00024568,2]
[372585614,1752694248630,-800.0,0.00024627,2]
[372585615,1752694248640,-24140.8337124,0.0002465,2]
[372585616,1752694248650,-909.246555,0.00024657,7]
[372585617,1752694248660,-460.0,0.00024657,2]
[372585618,1752694248670,-611.6,0.00024657,2]
[372585619,1752694248680,-470.7,0.00024657,2]
[372585620,1752694248691,-1636.37,0.00024657,2]
[372585621,1752694248702,-510.59,0.00024657,2]
[372585622,1752694248712,-2653.65750983,0.00024693,11]
[372585623,1752694248722,-816.87,0.00024731,2]
[372585624,1752694248734,-1680.19,0.00024731,2]
[372585625,1752694248747,-2803.52,0.00024731,2]
[372585626,1752694248757,-642.09,0.00024731,2]
[372585627,1752694248767,-1748.36,0.00024731,2]
[372585629,1752694248777,-972.68,0.00024731,2]
[372585631,1752694248787,-1438.37,0.00024731,2]
[372585633,1752694248797,-983.03,0.00024731,2]
[372585635,1752694248807,-475.44,0.00024731,2]
[372585637,1752694248818,-217.7,0.00024765,7]
[372585639,1752694248828,-500.0,0.00024773,2]
[372585641,1752694248839,-500.0,0.00024773,2]
[372585643,1752694248849,-500.0,0.00024773,2]
[372585645,1752694248860,-158.13031475,0.00024773,2]
[372585647,1752694248874,-160.0,0.00024789,6]
[372585649,1752694248885,-152.635506,0.00024797,10]
[372585651,1752694248895,-186.44970157,0.000248,2]
[372585653,1752694248905,-6432.4430688,0.000248,2]
[372585655,1752694248915,-4029.06388272,0.00024819,2]
[372585657,1752694248926,-416.23721927,0.00024819,2]
[372585659,1752694248938,-4013.89011524,0.00024819,2]
[372585661,1752694248947,-800.0,0.00024823,2]
[372585663,1752694248957,-1765.45,0.00024831,2]
[372585665,1752694248967,-784.45,0.00024831,2]
[372585667,1752694248976,-538.06,0.00024831,2]
[372585669,1752694248985,-1168.88,0.00024831,2]
[372585671,1752694248995,-177.46811819,0.00024849,2]
[372585673,1752694249006,-152.635506,0.0002487,4]
[372585675,1752694249015,-800.0,0.00024872,2]
[372585677,1752694249025,-150.0,0.00024873,2]
[372585679,1752694249034,-150.6881,0.00024875,2]
[372585681,1752694249044,-1060.0,0.00024887,2]
[372585683,1752694249053,-909.246555,0.000249,7]
[372585685,1752694249063,-500.0,0.000249,9]
[372585687,1752694249073,-621745.717203,0.000249,2]
[372585689,1752694249082,-500.0,0.000249,9]
[372585690,1752694249092,-6432.44306878,0.00024908,2]
[372585693,1752694249102,-231.63662643,0.00024931,2]
[372585694,1752694249113,-611.6,0.00024931,2]
[372585696,1752694249123,-470.7,0.00024931,2]
[372585699,1752694249134,-1636.37,0.00024931,2]
[372585701,1752694249144,-510.59,0.00024931,2]
[372585703,1752694249155,-960.0,0.00024932,2]
[372585704,1752694249165,-151.0,0.00024932,2]
[372585706,1752694249175,-151.0,0.00024932,2]
[372585708,1752694249186,-151.0,0.00024932,2]
[372585710,1752694249196,-440.0,0.00024932,2]
[372585713,1752694249206,-500.0,0.00024932,2]
[372585715,1752694249216,-151.0,0.00024932,2]
[372585716,1752694249226,-500.0,0.00024932,2]
[372585719,1752694249236,-151.0,0.00024932,2]
[372585721,1752694249247,-151.0,0.00024932,2]
[372585722,1752694249267,-151.0,0.00024932,2]
[372585725,1752694249279,-500.0,0.00024932,2]
[372585726,1752694249288,-191.13645195,0.00024932,2]
[372585728,1752694249299,-151.0,0.00024932,2]
[372585730,1752694249310,-500.0,0.00024932,2]
[372585733,1752694249320,-151.0,0.00024932,2]
[372585735,1752694249330,-2653.65750983,0.00024934,12]
[372585737,1752694249340,-168.0,0.00024962,2]
[372585739,1752694249350,-152.635506,0.00024965,2]
[372585741,1752694249360,-1000.0,0.00024999,7]
[372585743,1752694249370,-1000.0,0.00024999,10]
[372585745,1752694249380,-2612.08723678,0.00025,2]
[372585746,1752694249389,-200.0,0.00025,7]
[372585748,1752694249399,-600.0,0.00025,2]
[372585750,1752694249409,-2727.03501073,0.00025,2]
[372585753,1752694249420,-296.501652,0.00025,7]
[372585755,1752694249430,-296.501652,0.00025,7]
[372585756,1752694249440,-151.0,0.00025,7]
[372585759,1752694249450,-200.432191,0.00025,7]
[372585761,1752694249460,-200.432191,0.00025,7]
[372585762,1752694249470,-151.0,0.00025,7]
[372585765,1752694249480,-151.0,0.00025,7]
[372585767,1752694249491,-183.010506,0.00025,7]
[372585769,1752694249502,-183.010514,0.00025,7]
[372585771,1752694249512,-909.246555,0.00025,7]
[372585773,1752694249521,-909.246555,0.00025,7]
[372585775,1752694249531,-5070.28,0.00025,7]
[372585777,1752694249541,-172.0,0.00025,3]
[372585779,1752694249550,-173.49686459,0.00025,3]
[372585781,1752694249559,-154.0,0.00025,3]
[372585783,1752694249569,-1751.0,0.00025,3]
[372585785,1752694249579,-1751.0,0.00025,3]
[372585787,1752694249588,-1751.0,0.00025,3]
[372585789,1752694249598,-1751.0,0.00025,3]
[372585791,1752694249608,-1751.0,0.00025,3]
[372585793,1752694249617,-324.0,0.00025,3]
[372585795,1752694249629,-324.0,0.00025,3]
[372585797,1752694249639,-324.0,0.00025,3]
[372585799,1752694249648,-324.0,0.00025,3]
[372585801,1752694249658,-324.0,0.00025,3]
[372585803,1752694249667,-324.0,0.00025,3]
[372585805,1752694249677,-324.0,0.00025,3]
[372585807,1752694249691,-324.0,0.00025,3]
[372585809,1752694249704,-324.0,0.00025,3]
[372585811,1752694249714,-324.0,0.00025,3]
[372585813,1752694249723,-324.0,0.00025,3]
[372585815,1752694249738,-324.0,0.00025,3]
[372585817,1752694249748,-324.0,0.00025,3]
[372585819,1752694249758,-324.0,0.00025,3]
[372585821,1752694249767,-324.0,0.00025,3]
[372585823,1752694249778,-500.0,0.00025,2]
[372585825,1752694249788,-500.0,0.00025,2]
[372585827,1752694249798,-500.0,0.00025,2]
[372585829,1752694249809,-500.0,0.00025,2]
[372585831,1752694249819,-500.0,0.00025,2]
[372585833,1752694249829,-164.26806508,0.00025,2]
[372585835,1752694249839,-500.0,0.00025,2]
[372585837,1752694249849,-500.0,0.00025,2]
[372585839,1752694249858,-507.28079603,0.00025,2]
[372585841,1752694249868,-2894.46,0.00025,7]
[372585843,1752694249877,-26691.31,0.00025,7]
[372585845,1752694249886,-1000.0,0.00025,2]
[372585847,1752694249897,-250.0,0.00025,2]
[372585849,1752694249906,-2035.2941022,0.00025,14]
[372585852,1752694249916,-1302.37765317,0.00025,7]
[372585854,1752694249926,-8425.20630101,0.00025,30]
[372585856,1752694249937,-452.99999986,0.00025,5]
[372585858,1752694249947,-1607.9321,0.00025,2]
[372585860,1752694249956,-168.0,0.00025003,7]
[372585862,1752694249965,-816.87,0.00025005,2]
[372585864,1752694249975,-1680.19,0.00025005,2]
[372585866,1752694249985,-2803.52,0.00025005,2]
[372585868,1752694249995,-642.09,0.00025005,2]
[372585870,1752694250005,-1748.36,0.00025005,2]
[372585872,1752694250015,-972.68,0.00025005,2]
[372585874,1752694250024,-1438.37,0.00025005,2]
[372585876,1752694250034,-983.03,0.00025005,2]
[372585878,1752694250043,-475.44,0.00025005,2]
[372585880,1752694250054,-6432.44306878,0.00025016,2]
[372585882,1752694250063,-152.635506,0.0002503,11]
[372585884,1752694250072,-152.635506,0.00025059,11]
[372585886,1752694250082,-152.635506,0.00025088,11]
[372585888,1752694250092,-168.0,0.00025089,2]
[372585890,1752694250102,-443.010368,0.000251,2]
[372585892,1752694250112,-1765.45,0.00025105,2]
[372585894,1752694250121,-784.45,0.00025105,2]
[372585896,1752694250131,-538.06,0.00025105,2]
[372585898,1752694250140,-1168.88,0.00025105,2]
[372585900,1752694250151,-382966.89,0.00025106,11]
[372585903,1752694250160,-15260.31,0.00025106,11]
[372585904,1752694250169,-120855.18,0.00025106,11]
[372585906,1752694250179,-168.0,0.00025115,2]
[372585909,1752694250191,-152.635506,0.00025118,11]
[372585911,1752694250200,-152.635506,0.00025122,7]
[372585913,1752694250210,-6432.44306878,0.00025123,2]
[372585928,1752694250345,-168.0,0.00025134,2]
[372585930,1752694250357,-217.7,0.00025139,7]
[372585932,1752694250366,-2653.65750983,0.00025176,12]
[372585934,1752694250376,-168.0,0.00025197,2]
[372585936,1752694250385,-611.6,0.00025205,2]
[372585938,1752694250395,-470.7,0.00025205,2]
[372585940,1752694250404,-1636.37,0.00025205,2]
[372585942,1752694250414,-510.59,0.00025205,2]
[372585944,1752694250424,-960.0,0.00025206,2]
[372585946,1752694250434,-198.0,0.00025206,2]
[372585948,1752694250444,-215.20393213,0.00025206,2]
[372585950,1752694250453,-157.13072546,0.00025206,2]
[372585952,1752694250463,-440.0,0.00025206,2]
[372585954,1752694250473,-500.0,0.00025206,2]
[372585956,1752694250483,-151.0,0.00025206,2]
[372585958,1752694250492,-500.0,0.00025206,2]
[372585960,1752694250501,-151.0,0.00025206,2]
[372585962,1752694250511,-198.0,0.00025206,2]
[372585964,1752694250520,-500.0,0.00025206,2]
[372585966,1752694250532,-500.0,0.00025206,2]
[372585968,1752694250541,-206.0,0.0002523,2]
[372585970,1752694250552,-205.0,0.0002523,2]
[372585972,1752694250561,-6432.44306878,0.00025231,2]
[372585974,1752694250571,-152.635506,0.0002525,14]
[372585976,1752694250579,-654.664,0.0002525,2]
[372585978,1752694250589,-2200.0,0.0002525,2]
[372585980,1752694250598,-816.99224881,0.00025279,2]
[372585982,1752694250607,-1680.34660505,0.00025279,2]
[372585984,1752694250617,-2803.56657695,0.00025279,2]
[372585986,1752694250626,-642.11,0.00025279,2]
[372585988,1752694250635,-1748.53028934,0.00025279,2]
[372585990,1752694250645,-972.81329221,0.00025279,2]
[372585992,1752694250654,-1438.51205121,0.00025279,2]
[372585994,1752694250664,-983.09732852,0.00025279,2]
[372585996,1752694250674,-475.66776656,0.00025279,2]
[372585998,1752694250683,-152.635506,0.00025283,6]
[372586000,1752694250692,-1000.0,0.00025321,2]
[372586002,1752694250702,-6110.02234996,0.00025327,2]
[372586003,1752694250711,-5000.0,0.00025327,2]
[372586006,1752694250720,-5000.0,0.00025327,3]
[372586008,1752694250731,-5000.0,0.00025327,5]
[372586010,1752694250742,-5000.0,0.00025327,2]
[372586012,1752694250752,-6432.44306878,0.00025339,2]
[372586013,1752694250761,-500.0,0.0002534,2]
[372586016,1752694250772,-152.635506,0.00025352,4]
[372586018,1752694250781,-1765.63968434,0.00025379,2]
[372586020,1752694250793,-784.64,0.00025379,2]
[372586022,1752694250802,-538.13379112,0.00025379,2]
[372586024,1752694250812,-1169.05526447,0.00025379,2]
[372586026,1752694250823,-153.0,0.00025385,2]
[372586028,1752694250833,-5262.95,0.000254,7]
[372586030,1752694250843,-800.0,0.00025415,2]
[372586032,1752694250853,-2653.65750983,0.00025417,13]
[372586034,1752694250862,-300.0,0.00025421,2]
[372586036,1752694250872,-1400.0,0.00025429,2]
[372586037,1752694250881,-1160.0,0.00025435,2]
[372586038,1752694250891,-6432.44306878,0.00025447,2]
[372586039,1752694250900,-1400.0,0.00025456,2]
[372586040,1752694250910,-500.0,0.00025473,2]
[372586041,1752694250922,-151.0,0.00025479,7]
[372586042,1752694250933,-172.934017,0.00025479,7]
[372586043,1752694250942,-611.7436287,0.00025479,2]
[372586044,1752694250952,-470.81,0.00025479,2]
[372586045,1752694250962,-1636.37,0.00025479,2]
[372586046,1752694250971,-510.59,0.00025479,2]
[372586047,1752694250980,-960.0,0.0002548,2]
[372586048,1752694250990,-440.0,0.0002548,2]
[372586049,1752694251000,-151.0,0.0002548,2]
[372586050,1752694251009,-151.0,0.0002548,2]
[372586051,1752694251019,-264.92489047,0.0002548,2]
[372586052,1752694251030,-156.16349487,0.0002548,2]
[372586053,1752694251041,-500.0,0.0002548,2]
[372586054,1752694251051,-800.0,0.00025493,2]
[372586055,1752694251061,-1400.0,0.00025498,2]
[372586056,1752694251071,-34764.33,0.000255,2]
[372586057,1752694251081,-500.0,0.00025512,2]
[372586058,1752694251090,-217.7,0.00025513,7]
[372586059,1752694251099,-800.0,0.00025526,2]
[372586060,1752694251107,-6432.44306878,0.00025554,2]
[372586061,1752694251116,-206.0,0.0002556,2]
[372586062,1752694251125,-205.0,0.0002556,2]
[372586063,1752694251133,-2000.0,0.000256,2]
[372586064,1752694251142,-2000.0,0.000256,2]
[372586065,1752694251151,-532.55,0.000256,31]
[372586067,1752694251160,-532.55,0.000256,31]
[372586068,1752694251170,-532.55,0.000256,31]
[372586069,1752694251179,-532.55,0.000256,31]
[372586070,1752694251190,-532.55,0.000256,31]
[372586071,1752694251200,-532.55,0.000256,31]
[372586072,1752694251210,-532.55,0.000256,31]
[372586073,1752694251219,-532.55,0.000256,31]
[372586075,1752694251228,-532.55,0.000256,31]
[372586077,1752694251238,-532.55,0.000256,31]
[372586079,1752694251247,-532.55,0.000256,31]
[372586080,1752694251256,-532.55,0.000256,31]
[372586082,1752694251266,-532.55,0.000256,31]
[372586084,1752694251275,-532.55,0.000256,31]
[372586086,1752694251285,-532.55,0.000256,31]
[372586088,1752694251296,-532.55,0.000256,31]
[372586090,1752694251305,-2561.0,0.00025609,2]
[372586092,1752694251315,-231.28369723,0.0002562,2]
[372586094,1752694251325,-2653.65750983,0.00025659,13]
[372586096,1752694251335,-6432.44306878,0.00025662,2]
[372586098,1752694251344,-1400.0,0.00025668,2]
[372586100,1752694251354,-168.0,0.00025671,2]
[372586102,1752694251363,-500.0,0.00025678,2]
[372586104,1752694251373,-1400.0,0.00025695,2]
[372586106,1752694251382,-152.635506,0.00025696,10]
[372586108,1752694251392,-1254.143064,0.0002574,5]
[372586110,1752694251401,-152.635506,0.00025746,20]
[372586112,1752694251411,-1636.55536256,0.00025753,2]
[372586114,1752694251420,-510.79,0.00025753,2]
[372586116,1752694251429,-960.0,0.00025754,2]
[372586118,1752694251439,-440.0,0.00025754,2]
[372586120,1752694251448,-500.0,0.00025754,2]
[372586122,1752694251458,-1000.0,0.0002576,5]
[372586124,1752694251468,-232.87420986,0.0002577,2]
[372586126,1752694251477,-6432.44306878,0.0002577,2]
[372586128,1752694251487,-168.0,0.00025777,2]
[372586130,1752694251496,-165.20533425,0.00025778,2]
[372586132,1752694251505,-1000.0,0.0002578,5]
[372586134,1752694251514,-1127.071532,0.0002578,5]
[372586136,1752694251523,-1362.95488619,0.00025783,16]
[372586138,1752694251533,-160.0,0.00025789,7]
[372586140,1752694251543,-161.00384161,0.00025789,5]
[372586142,1752694251552,-152.635506,0.00025793,20]
[372586145,1752694251562,-2000.0,0.000258,2]
[372586147,1752694251572,-200.432191,0.000258,7]
[372586148,1752694251581,-200.432191,0.000258,7]
[372586150,1752694251590,-1000.0,0.000258,5]
[372586152,1752694251600,-1000.0,0.000258,5]
[372586154,1752694251609,-532.55,0.000258,31]
[372586156,1752694251618,-532.55,0.000258,31]
[372586158,1752694251628,-532.55,0.000258,31]
[372586160,1752694251637,-532.55,0.000258,31]
[372586163,1752694251648,-532.55,0.000258,31]
[372586165,1752694251658,-532.55,0.000258,31]
[372586166,1752694251667,-532.55,0.000258,31]
[372586168,1752694251676,-532.55,0.000258,31]
[372586171,1752694251686,-532.55,0.000258,31]
[372586172,1752694251696,-532.55,0.000258,31]
[372586174,1752694251705,-532.55,0.000258,31]
[372586176,1752694251716,-532.55,0.000258,31]
[372586178,1752694251726,-532.55,0.000258,31]
[372586180,1752694251739,-532.55,0.000258,31]
[372586182,1752694251749,-532.55,0.000258,31]
[372586184,1752694251761,-532.55,0.000258,31]
[372586186,1752694251771,-532.55,0.000258,31]
[372586188,1752694251780,-532.55,0.000258,31]
[372586190,1752694251790,-532.55,0.000258,31]
[372586193,1752694251800,-532.55,0.000258,31]
[372586195,1752694251810,-532.55,0.000258,31]
[372586197,1752694251819,-532.55,0.000258,31]
[372586199,1752694251830,-532.55,0.000258,31]
[372586201,1752694251840,-532.55,0.000258,31]
[372586203,1752694251849,-909.246555,0.00025806,7]
[372586205,1752694251858,-909.246554,0.00025806,7]
[372586207,1752694251868,-800.0,0.00025828,2]
[372586208,1752694251877,-152.635506,0.00025835,4]
[372586210,1752694251887,-152.635506,0.0002584,20]
[372586212,1752694251896,-190.0,0.00025844,2]
[372586214,1752694251906,-5000.0,0.00025847,3]
[372586217,1752694251915,-151.0,0.00025851,7]
[372586218,1752694251925,-151.0,0.00025853,7]
[372586220,1752694251934,-151.0,0.00025853,7]
[372586222,1752694251947,-151.0,0.00025853,7]
[372586224,1752694251957,-151.0,0.00025853,7]
[372586227,1752694251967,-151.0,0.00025853,7]
[372586229,1752694251976,-151.0,0.00025853,7]
[372586230,1752694251985,-151.0,0.00025853,7]
[372586232,1752694251994,-151.0,0.00025853,7]
[372586234,1752694252004,-239.512872,0.00025853,7]
[372586236,1752694252014,-151.0,0.00025853,7]
[372586238,1752694252023,-151.0,0.00025853,7]
[372586240,1752694252032,-151.0,0.00025853,7]
[372586243,1752694252044,-151.0,0.00025853,7]
[372586244,1752694252053,-151.0,0.00025853,7]
[372586246,1752694252063,-151.0,0.00025853,7]
[372586248,1752694252073,-151.0,0.00025853,7]
[372586250,1752694252083,-285.495583,0.00025853,7]
[372586252,1752694252092,-151.0,0.00025853,7]
[372586255,1752694252102,-151.0,0.00025853,7]
[372586257,1752694252111,-151.0,0.00025853,7]
[372586258,1752694252120,-151.0,0.00025853,7]
[372586260,1752694252129,-151.0,0.00025853,7]
[372586262,1752694252139,-151.0,0.00025853,7]
[372586264,1752694252148,-151.0,0.00025853,7]
[372586266,1752694252157,-151.0,0.00025853,7]
[372586268,1752694252167,-151.0,0.00025853,7]
[372586270,1752694252176,-151.0,0.00025853,7]
[372586272,1752694252187,-151.0,0.00025853,7]
[372586274,1752694252197,-151.0,0.00025853,7]
[372586276,1752694252207,-151.0,0.00025853,7]
[372586278,1752694252216,-151.0,0.00025853,7]
[372586280,1752694252225,-151.0,0.00025853,7]
[372586283,1752694252235,-151.0,0.00025853,7]
[372586285,1752694252244,-168.265735,0.00025853,7]
[372586286,1752694252253,-400.0,0.00025858,50]
[372586288,1752694252263,-151.0,0.00025858,7]
[372586290,1752694252273,-151.0,0.00025858,7]
[372586292,1752694252281,-151.0,0.00025858,7]
[372586294,1752694252291,-151.0,0.00025858,7]
[372586296,1752694252300,-151.0,0.00025858,7]
[372586298,1752694252310,-151.0,0.00025858,7]
[372586300,1752694252320,-151.0,0.00025858,7]